bitfinex/quotes_BTCUSD_20240620
["timestamp","ask_amount","ask_price","bid_price","bid_amount"]
[1718865933069,0.08655436,65610.0,65609.0,0.89803561]
[1718865933548,0.08655436,65610.0,65609.0,1.27187161]
[1718865933791,0.06772329,65624.0,65617.0,0.84681762]
[1718865933792,0.061078,65618.0,65617.0,0.84681762]
[1718865934035,0.00086,65624.0,65623.0,0.38961962]
[1718865934507,0.10086,65624.0,65623.0,0.38961962]
[1718865935516,0.00086,65624.0,65623.0,0.38961962]
[1718865936552,0.00186,65624.0,65623.0,0.38961962]
[1718865937129,0.02030424,65624.0,65623.0,0.38961962]
[1718865937448,0.00386,65624.0,65623.0,0.38961962]
[1718865938625,0.00386,65624.0,65623.0,0.84677562]
[1718865939406,0.00386,65624.0,65623.0,0.85677562]
[1718865939807,0.00286,65624.0,65623.0,0.84677562]
[1718865940009,0.00086,65624.0,65623.0,0.84677562]
[1718865940167,0.00086,65624.0,65623.0,0.86577562]
[1718865940403,0.00086,65624.0,65623.0,0.85577562]
[1718865942373,0.00086,65624.0,65623.0,0.55100462]
[1718865943980,0.01035796,65624.0,65623.0,0.55100462]
[1718865944630,0.365787,65634.0,65623.0,0.55100462]
[1718865944631,0.304728,65633.0,65624.0,0.1636]
[1718865944831,0.152374,65628.0,65627.0,0.01081962]
[1718865945836,0.152374,65628.0,65627.0,0.39131962]
[1718865947245,0.154374,65628.0,65627.0,0.39131962]
[1718865947448,0.155374,65628.0,65627.0,0.39131962]
[1718865951794,0.609468,65631.0,65630.0,0.01081962]
[1718865953357,0.766835,65631.0,65630.0,0.01081962]
[1718865954702,0.77633291,65631.0,65630.0,0.01081962]
[1718865955024,0.78033291,65631.0,65630.0,0.01081962]
[1718865955539,0.457101,65631.0,65630.0,0.01081962]
[1718865955762,0.761867,65628.0,65627.0,0.18631962]
[1718865956310,0.761867,65628.0,65624.0,0.1994]
[1718865956311,0.457135,65626.0,65625.0,0.17811962]
[1718865958313,0.457135,65626.0,65625.0,0.18111962]
[1718865959892,0.457135,65626.0,65625.0,0.18311962]
[1718865960091,0.659235,65626.0,65625.0,0.005]
[1718865960466,1.3651459,65626.0,65625.0,0.005]
[1718865961139,0.761915,65624.0,65623.0,0.01081962]
[1718865961885,0.761915,65624.0,65623.0,0.18061962]
[1718865962723,0.457149,65624.0,65623.0,0.18061962]
[1718865963180,0.761915,65624.0,65623.0,0.18061962]
[1718865963576,0.152383,65624.0,65623.0,0.18061962]
[1718865963847,0.152383,65624.0,65623.0,0.37971962]
[1718865964050,0.152383,65624.0,65623.0,0.38671962]
[1718865964051,0.457149,65624.0,65623.0,0.38671962]
[1718865964180,0.457149,65624.0,65623.0,0.38271962]
[1718865964601,0.457149,65624.0,65623.0,0.38371962]
[1718865964806,0.457149,65624.0,65623.0,0.38271962]
[1718865965162,0.457149,65624.0,65623.0,0.38771962]
[1718865965365,0.152383,65624.0,65623.0,0.38771962]
[1718865965625,0.304753,65627.0,65626.0,0.01081962]
[1718865965849,0.304753,65627.0,65626.0,0.38031962]
[1718865965850,0.152376,65627.0,65626.0,0.38031962]
[1718865966695,0.304722,65634.0,65626.0,0.38031962]
[1718865966899,0.152362,65633.0,65632.0,0.40381962]
[1718865967364,0.457086,65633.0,65632.0,0.40381962]
[1718865968120,0.464086,65633.0,65632.0,0.40481962]
[1718865968726,0.007,65633.0,65632.0,0.40481962]
[1718865969966,0.159362,65633.0,65632.0,0.40481962]
[1718865970157,0.166362,65633.0,65632.0,0.40581962]
[1718865973492,0.166362,65633.0,65632.0,0.18791962]
[1718865973493,0.471086,65633.0,65632.0,0.18791962]
[1718865973670,0.77581,65633.0,65632.0,0.01281962]
[1718865975256,0.77581,65633.0,65632.0,0.002]
[1718865976428,2.00428724,65633.0,65632.0,0.002]
[1718865976630,0.457183,65619.0,65618.0,0.1072]
[1718865976845,0.457183,65619.0,65617.0,0.4752]
[1718865976846,0.457191,65618.0,65617.0,0.4752]
[1718865977308,1.066779,65618.0,65617.0,0.4752]
[1718865977539,1.07627049,65618.0,65617.0,0.4752]
[1718865978742,1.07627049,65618.0,65617.0,0.4792]
[1718865979246,1.07627049,65618.0,65617.0,0.49001962]
[1718865980499,1.07727049,65618.0,65617.0,0.01681962]
[1718865981348,1.1011736,65618.0,65617.0,0.01681962]
[1718865984193,0.7963796,65618.0,65617.0,0.01681962]
[1718865984725,1.21728936,65618.0,65617.0,0.006]
[1718865985373,1.33822585,65618.0,65617.0,0.006]
[1718865986158,1.49078697,65618.0,65617.0,0.006]
[1718865986356,1.56698697,65618.0,65617.0,0.006]
[1718865986688,1.62598697,65618.0,65617.0,0.006]
[1718865987292,1.62498697,65618.0,65617.0,0.004]
[1718865987697,1.62898697,65618.0,65617.0,0.004]
[1718865987903,0.762065,65611.0,65610.0,0.105146]
[1718865988171,0.77155649,65611.0,65610.0,0.105146]
[1718865988444,0.77155649,65611.0,65610.0,0.000946]
[1718865988624,1.22760148,65611.0,65610.0,0.000946]
[1718865988795,1.17583307,65611.0,65610.0,0.000946]
[1718865989143,1.17583307,65611.0,65610.0,0.002946]
[1718865989657,1.17583307,65611.0,65610.0,0.000946]
[1718865991114,1.17883307,65611.0,65610.0,0.000946]
[1718865991578,1.17983307,65611.0,65610.0,0.000946]
[1718865991780,1.17683307,65611.0,65610.0,0.000946]
[1718865991968,1.17883307,65611.0,65610.0,0.000946]
[1718865992164,1.18083307,65611.0,65610.0,0.000946]
[1718865992542,1.23389302,65611.0,65610.0,0.000946]
[1718865992706,1.23089302,65611.0,65610.0,0.000946]
[1718865992910,1.23189302,65611.0,65610.0,0.000946]
[1718865994089,1.22240153,65611.0,65610.0,0.000946]
[1718865994306,1.17882914,65611.0,65610.0,0.00036892]
[1718865994513,1.17782914,65611.0,65610.0,0.00036892]
[1718865994845,1.17882914,65611.0,65610.0,0.00036892]
[1718865995671,1.25702914,65611.0,65610.0,0.00036892]
[1718865996128,1.31602914,65611.0,65610.0,0.00036892]
[1718865996763,1.23982914,65611.0,65610.0,0.00036892]
[1718865996963,1.18082914,65611.0,65610.0,0.00036892]
[1718865997287,1.18082914,65611.0,65610.0,0.01118854]
[1718865997884,1.30481205,65611.0,65610.0,0.01118854]
[1718865998631,1.18082914,65611.0,65610.0,0.01118854]
[1718866000104,1.20227773,65611.0,65610.0,0.01118854]
[1718866000916,1.20227749,65611.0,65610.0,0.01118854]
[1718866001939,1.20227757,65611.0,65610.0,0.00036892]
[1718866002175,1.38740533,65611.0,65610.0,0.00036892]
[1718866006120,1.20227757,65611.0,65610.0,0.00036892]
[1718866007112,2.28982969,65611.0,65610.0,0.00036892]
[1718866007383,2.28982969,65611.0,65609.0,0.00186199]
[1718866007384,0.762077,65610.0,65609.0,0.00186199]
[1718866007588,1.63378752,65610.0,65609.0,0.00186199]
[1718866007797,1.67341562,65610.0,65609.0,0.00186199]
[1718866007935,1.82596976,65610.0,65609.0,0.00186199]
[1718866008132,1.88496976,65610.0,65609.0,0.00186199]
[1718866008739,1.88696976,65610.0,65609.0,0.00186199]
[1718866008955,1.88796976,65610.0,65609.0,0.00186199]
[1718866009156,1.96416976,65610.0,65609.0,0.00186199]
[1718866011083,1.75061562,65610.0,65609.0,0.00186199]
[1718866011283,1.76998752,65610.0,65609.0,0.00186199]
[1718866011491,1.78298752,65610.0,65609.0,0.00186199]
[1718866011864,1.82261562,65610.0,65609.0,0.00186199]
[1718866012073,1.82161562,65610.0,65609.0,0.00186199]
[1718866012275,1.91516976,65610.0,65609.0,0.00186199]
[1718866012482,1.82161562,65610.0,65609.0,0.00186199]
[1718866012838,1.83461562,65610.0,65609.0,0.00186199]
[1718866017119,1.89570962,65610.0,65609.0,0.00186199]
[1718866019302,1.89570962,65610.0,65602.0,0.00948199]
[1718866019303,1.067024,65603.0,65602.0,0.00948199]
[1718866019578,1.2355114,65603.0,65602.0,0.00948199]
[1718866020358,1.38807252,65603.0,65602.0,0.00948199]
[1718866020558,1.69293652,65603.0,65602.0,0.00948199]
[1718866020768,1.69693652,65603.0,65602.0,0.00948199]
[1718866020930,1.84949066,65603.0,65602.0,0.00948199]
[1718866021131,2.35927876,65603.0,65602.0,1e-08]
[1718866021751,1.96931876,65603.0,65602.0,1e-08]
[1718866021951,2.37418276,65603.0,65602.0,1e-08]
[1718866022158,1.99231876,65603.0,65602.0,1e-08]
[1718866022364,2.06998671,65603.0,65602.0,1e-08]
[1718866022565,1.91751652,65603.0,65602.0,1e-08]
[1718866022765,1.83976462,65603.0,65602.0,1e-08]
[1718866023071,1.83576462,65603.0,65602.0,1e-08]
[1718866023460,1.84476462,65603.0,65602.0,1e-08]
[1718866024520,1.84076462,65603.0,65602.0,1e-08]
[1718866024740,1.99331876,65603.0,65602.0,1e-08]
[1718866024960,2.00231876,65603.0,65602.0,1e-08]
[1718866025683,2.05231876,65603.0,65602.0,1e-08]
[1718866025851,1.372054,65595.0,65594.0,0.00948199]
[1718866026079,1.83030531,65595.0,65594.0,0.00948199]
[1718866026281,1.87401539,65595.0,65594.0,0.00948199]
[1718866027056,1.88401539,65595.0,65594.0,0.00948199]
[1718866027392,1.87401539,65595.0,65594.0,0.00948199]
[1718866027697,1.88501539,65595.0,65594.0,0.00948199]
[1718866027900,1.96121539,65595.0,65594.0,0.00948199]
[1718866028060,1.90321539,65595.0,65594.0,0.00948199]
[1718866028260,1.96221539,65595.0,65594.0,0.00948199]
[1718866028463,1.96121539,65595.0,65594.0,0.00948199]
[1718866028801,1.97321539,65595.0,65594.0,0.00948199]
[1718866029941,3.04727239,65595.0,65594.0,0.00948199]
[1718866030116,3.02720039,65595.0,65594.0,0.00948199]
[1718866030317,3.10020039,65595.0,65594.0,1e-08]
[1718866030951,2.04621539,65595.0,65594.0,1e-08]
[1718866033969,2.04732605,65595.0,65594.0,1e-08]
[1718866036868,2.07488407,65595.0,65594.0,1e-08]
[1718866037679,2.22479203,65595.0,65594.0,1e-08]
[1718866037916,3.67005517,65595.0,65594.0,1e-08]
[1718866038252,3.67005517,65595.0,65575.0,0.00948199]
[1718866038253,0.457483,65576.0,65575.0,0.00948199]
[1718866038469,1.32950001,65576.0,65575.0,0.00948199]
[1718866038616,1.38850001,65576.0,65575.0,0.00948199]
[1718866039782,1.69348901,65576.0,65575.0,0.00948199]
[1718866039920,1.71648901,65576.0,65575.0,0.00948199]
[1718866040120,1.86904315,65576.0,65575.0,0.00948199]
[1718866040341,1.99013079,65576.0,65575.0,0.00948199]
[1718866040547,1.99113079,65576.0,65575.0,0.00948199]
[1718866041156,1.45358765,65576.0,65575.0,0.00948199]
[1718866041397,1.46776001,65576.0,65575.0,0.25570161]
[1718866041603,1.49168178,65576.0,65575.0,0.25570161]
[1718866041798,1.49168178,65576.0,65575.0,0.24488199]
[1718866042456,1.64423592,65576.0,65575.0,0.24488199]
[1718866042897,1.43268178,65576.0,65575.0,0.24488199]
[1718866043122,1.49168178,65576.0,65575.0,0.25570161]
[1718866043543,1.43268178,65576.0,65575.0,0.25570161]
[1718866045438,1.43268178,65576.0,65575.0,0.24488199]
[1718866045439,1.58038178,65576.0,65575.0,0.24488199]
[1718866046174,1.56665181,65576.0,65575.0,0.11328199]
[1718866046575,1.41895181,65576.0,65575.0,0.24728199]
[1718866049548,1.48007481,65576.0,65575.0,0.24728199]
[1718866050195,1.50030174,65576.0,65575.0,0.24728199]
[1718866050772,1.50030174,65576.0,65575.0,0.11368199]
[1718866051437,1.65285588,65576.0,65575.0,0.00948199]
[1718866052274,1.95784488,65576.0,65575.0,0.00948199]
[1718866052494,1.98084488,65576.0,65575.0,0.00948199]
[1718866052780,2.02567252,65576.0,65575.0,0.00948199]
[1718866053311,2.07567252,65576.0,65575.0,0.00948199]
[1718866053536,2.12292184,65576.0,65575.0,0.00948199]
[1718866053733,2.12292184,65576.0,65575.0,0.00792376]
[1718866053944,2.12092184,65576.0,65575.0,0.00792376]
[1718866054147,2.12092184,65576.0,65575.0,0.00637073]
[1718866054350,2.12792184,65576.0,65575.0,0.00637073]
[1718866054798,2.12892184,65576.0,65575.0,0.00637073]
[1718866055157,2.13792184,65576.0,65575.0,0.00637073]
[1718866059344,2.13792184,65576.0,65568.0,0.1111]
[1718866059345,1.067577,65569.0,65568.0,0.1111]
[1718866059507,1.33356464,65569.0,65568.0,0.1111]
[1718866060012,1.33356464,65569.0,65568.0,0.243]
[1718866061050,1.33407209,65569.0,65568.0,0.243]
[1718866061249,1.41033209,65569.0,65568.0,0.243]
[1718866062664,0.64772697,65569.0,65568.0,0.25381962]
[1718866062838,0.19019397,65569.0,65568.0,0.55884562]
[1718866063035,0.09019397,65569.0,65568.0,0.41633262]
[1718866063235,0.09019397,65569.0,65568.0,0.49261434]
[1718866063423,0.09019397,65569.0,65568.0,0.55171434]
[1718866063880,0.3491417,65576.0,65575.0,0.24471962]
[1718866063881,0.0441487,65576.0,65575.0,0.24471962]
[1718866065049,0.0451487,65576.0,65575.0,0.24471962]
[1718866065731,0.0471487,65576.0,65575.0,0.24471962]
[1718866067184,0.93529377,65576.0,65575.0,0.2339]
[1718866067535,0.9687207,65576.0,65575.0,0.24471962]
[1718866068872,0.9096207,65576.0,65575.0,0.24471962]
[1718866068999,0.6046317,65576.0,65575.0,0.24471962]
[1718866069203,0.2996427,65576.0,65575.0,0.24471962]
[1718866070034,0.6046317,65576.0,65575.0,0.24471962]
[1718866070397,0.2996427,65576.0,65575.0,0.24471962]
[1718866070834,0.6046317,65576.0,65575.0,0.24471962]
[1718866073379,0.9096207,65576.0,65575.0,0.24471962]
[1718866073843,0.9213075,65576.0,65575.0,0.24471962]
[1718866075509,0.9096207,65576.0,65575.0,0.24471962]
[1718866075667,0.92144092,65576.0,65575.0,0.24471962]
[1718866076994,1.04762219,65576.0,65575.0,0.24471962]
[1718866077209,1.04762115,65576.0,65575.0,0.24471962]
[1718866077755,0.92143988,65576.0,65575.0,0.24471962]
[1718866079049,0.92143988,65576.0,65575.0,0.24566562]
[1718866079453,0.92229988,65576.0,65575.0,0.24566562]
[1718866079888,0.92370375,65576.0,65575.0,0.24566562]
[1718866080888,1.22869275,65576.0,65575.0,0.24566562]
[1718866081652,0.305006,65573.0,65565.0,0.01]
[1718866081870,0.11322305,65572.0,65565.0,0.01]
[1718866082071,0.152512,65569.0,65565.0,0.01]
[1718866082270,0.01322305,65568.0,65565.0,0.01]
[1718866082737,0.16573605,65568.0,65565.0,0.01]
[1718866082933,0.01322305,65567.0,65565.0,0.01]
[1718866083992,0.01422305,65567.0,65565.0,0.01]
[1718866084211,0.01322305,65566.0,65565.0,0.01]
[1718866084416,0.152521,65565.0,65562.0,0.01]
[1718866084617,0.01322305,65564.0,65562.0,0.01]
[1718866084825,0.01322305,65564.0,65563.0,0.2482]
[1718866085025,0.01339844,65564.0,65563.0,0.2482]
[1718866085397,0.01339844,65564.0,65563.0,0.2582]
[1718866085576,0.152519,65566.0,65565.0,0.2617]
[1718866085876,0.16591733,65566.0,65565.0,0.2617]
[1718866086021,0.16691733,65566.0,65565.0,0.2617]
[1718866086220,0.16591733,65566.0,65565.0,0.2617]
[1718866086824,0.153519,65566.0,65565.0,0.2617]
[1718866087052,0.16783305,65566.0,65565.0,0.2617]
[1718866087277,0.16683305,65566.0,65565.0,0.2617]
[1718866087636,0.16783305,65566.0,65565.0,0.2617]
[1718866087836,0.16807144,65566.0,65565.0,0.2617]
[1718866088161,0.16807144,65566.0,65565.0,0.2517]
[1718866088367,0.16907144,65566.0,65565.0,0.2517]
[1718866091004,0.01655244,65566.0,65565.0,0.2517]
[1718866091191,0.01655244,65566.0,65565.0,0.2617]
[1718866091393,0.152513,65568.0,65567.0,0.01]
[1718866091508,0.152513,65568.0,65567.0,0.2484]
[1718866092875,0.305014,65571.0,65569.0,0.2384]
[1718866093060,0.457525,65570.0,65569.0,0.2384]
[1718866093691,0.152508,65570.0,65569.0,0.2484]
[1718866094065,0.1,65572.0,65571.0,0.2407]
[1718866094443,0.1,65572.0,65571.0,0.1073]
[1718866094444,0.557512,65572.0,65571.0,0.1073]
[1718866094644,0.95327147,65572.0,65571.0,0.1073]
[1718866095577,0.86252,65572.0,65571.0,0.1073]
[1718866095776,0.86252,65572.0,65571.0,0.1083]
[1718866096014,0.557512,65572.0,65571.0,0.2495]
[1718866096678,0.252504,65572.0,65571.0,0.2495]
[1718866096882,0.252504,65572.0,65571.0,0.2505]
[1718866098707,0.64826147,65572.0,65571.0,0.2505]
[1718866099076,0.557512,65572.0,65571.0,0.2505]
[1718866100671,0.252504,65572.0,65571.0,0.2505]
[1718866101456,0.27014836,65572.0,65571.0,0.2505]
[1718866102101,0.57515636,65572.0,65571.0,0.2505]
[1718866107437,0.57603202,65572.0,65571.0,0.2505]
[1718866108320,0.88104002,65572.0,65571.0,0.002]
[1718866108535,1.00514349,65572.0,65571.0,0.002]
[1718866108702,1.01514349,65572.0,65571.0,0.002]
[1718866111521,1.01600349,65572.0,65571.0,0.002]
[1718866111723,1.00600349,65572.0,65571.0,0.002]
[1718866114858,0.88190002,65572.0,65571.0,0.002]
[1718866115750,0.89190002,65572.0,65571.0,0.002]
[1718866117913,0.8925685,65572.0,65571.0,0.002]
[1718866120387,1.1975765,65572.0,65571.0,0.002]
[1718866120595,1.77034562,65572.0,65571.0,0.002]
[1718866120789,1.94589976,65572.0,65571.0,0.002]
[1718866121074,2.00025402,65572.0,65571.0,0.002]
[1718866121545,2.05935402,65572.0,65571.0,0.002]
[1718866121977,2.05935402,65572.0,65571.0,0.001]
[1718866122418,1.07733074,65567.0,65566.0,0.000946]
[1718866122584,1.40818036,65567.0,65566.0,0.000946]
[1718866123144,1.43210393,65567.0,65566.0,0.000946]
[1718866123989,1.43210393,65567.0,65566.0,0.001946]
[1718866124190,1.43210393,65567.0,65566.0,0.002946]
[1718866124420,1.57805807,65567.0,65566.0,0.002946]
[1718866126747,1.55886957,65567.0,65566.0,0.002946]
[1718866128318,0.91543613,65567.0,65566.0,0.002946]
[1718866128526,0.30537413,65567.0,65566.0,0.243446]
[1718866128886,0.60506944,65567.0,65566.0,0.243446]
[1718866129631,0.91010044,65567.0,65566.0,0.110046]
[1718866130032,0.92010044,65567.0,65566.0,0.110046]
[1718866130472,0.91010044,65567.0,65566.0,0.110046]
[1718866130715,0.92010044,65567.0,65566.0,0.110046]
[1718866131649,0.91010044,65567.0,65566.0,0.110046]
[1718866132030,1.05012728,65567.0,65566.0,0.110046]
[1718866132632,1.06012728,65567.0,65566.0,0.110046]
[1718866132804,1.05012728,65567.0,65566.0,0.110046]
[1718866133217,0.91010044,65567.0,65566.0,0.110046]
[1718866133419,0.93008759,65567.0,65566.0,0.110046]
[1718866133627,0.94008759,65567.0,65566.0,0.110046]
[1718866133924,0.93008759,65567.0,65566.0,0.110046]
[1718866134123,0.93008759,65567.0,65566.0,0.10737549]
[1718866136440,0.94008759,65567.0,65566.0,0.10737549]
[1718866136674,0.93008759,65567.0,65566.0,0.10737549]
[1718866137256,0.94008759,65567.0,65566.0,0.10737549]
[1718866137471,1.07059315,65567.0,65566.0,0.10737549]
[1718866140246,0.93008759,65567.0,65566.0,0.18365721]
[1718866140435,0.94008759,65567.0,65566.0,0.18365721]
[1718866141835,0.94008759,65567.0,65566.0,0.10737549]
[1718866146091,0.94008759,65567.0,65566.0,0.00122149]
[1718866146243,1.71978667,65567.0,65566.0,0.00122149]
[1718866146443,1.72064667,65567.0,65566.0,0.00122149]
[1718866146762,1.72018537,65567.0,65566.0,0.00122149]
[1718866148313,1.71954588,65567.0,65566.0,0.00122149]
[1718866148518,1.79580588,65567.0,65566.0,0.00122149]
[1718866150012,1.79433359,65567.0,65566.0,0.00122149]
[1718866153713,1.73523359,65567.0,65566.0,0.00122149]
[1718866153915,1.79433359,65567.0,65566.0,0.00122149]
[1718866155136,1.79390364,65567.0,65566.0,0.00122149]
[1718866156356,1.46425447,65567.0,65566.0,0.00122149]
[1718866156753,1.64069425,65567.0,65566.0,0.00122149]
[1718866156981,1.61676947,65567.0,65566.0,0.00122149]
[1718866157433,1.61580534,65567.0,65566.0,0.00122149]
[1718866157968,1.59055968,65567.0,65566.0,0.00122149]
[1718866158229,1.61580524,65567.0,65566.0,0.00122149]
[1718866158387,1.61582342,65567.0,65566.0,0.00122149]
[1718866160022,1.76837756,65567.0,65566.0,0.00122149]
[1718866163128,1.70927756,65567.0,65566.0,0.00122149]
[1718866163451,1.76837756,65567.0,65566.0,0.00122149]
[1718866165734,1.74311382,65567.0,65566.0,0.00122149]
[1718866166108,1.76823122,65567.0,65566.0,0.00122149]
[1718866167326,1.76735718,65567.0,65566.0,0.00122149]
[1718866167868,1.78142362,65567.0,65566.0,0.00122149]
[1718866168524,1.78090488,65567.0,65566.0,0.00122149]
[1718866169575,1.95343588,65567.0,65566.0,0.00122149]
[1718866169712,2.03515163,65567.0,65566.0,0.00122149]
[1718866169932,2.01215163,65567.0,65566.0,0.00122149]
[1718866170140,2.02215163,65567.0,65566.0,0.00122149]
[1718866170542,2.02215163,65567.0,65566.0,0.000946]
[1718866170741,2.01715163,65567.0,65566.0,0.000946]
[1718866171199,2.04515163,65567.0,65566.0,0.000946]
[1718866171840,1.89259749,65567.0,65566.0,0.000946]
[1718866172443,1.90259749,65567.0,65566.0,0.000946]
[1718866172650,1.90289347,65567.0,65566.0,0.000946]
[1718866173056,1.89789347,65567.0,65566.0,0.000946]
[1718866173539,1.90689347,65567.0,65566.0,0.000946]
[1718866173755,2.05444761,65567.0,65566.0,0.000946]
[1718866173883,2.05367529,65567.0,65566.0,0.000946]
[1718866174473,2.06267529,65567.0,65566.0,0.000946]
[1718866175298,1.84102115,65567.0,65566.0,0.000946]
[1718866175504,1.90012115,65567.0,65566.0,0.000946]
[1718866178239,1.91012115,65567.0,65566.0,0.000946]
[1718866178400,1.90012115,65567.0,65566.0,0.000946]
[1718866183571,1.89112115,65567.0,65566.0,0.000946]
[1718866183770,1.98457529,65567.0,65566.0,0.000946]
[1718866184096,1.89312115,65567.0,65566.0,0.000946]
[1718866184264,1.88212115,65567.0,65566.0,0.000946]
[1718866184464,1.89212115,65567.0,65566.0,0.000946]
[1718866184704,1.90212115,65567.0,65566.0,0.000946]
[1718866192436,1.90212115,65567.0,65566.0,0.000946]
[1718866192794,1.89212115,65567.0,65566.0,0.000946]
[1718866192999,1.90212115,65567.0,65566.0,0.000946]
[1718866193812,1.89212115,65567.0,65566.0,0.000946]
[1718866194058,2.04467529,65567.0,65566.0,0.000946]
[1718866194434,2.05467529,65567.0,65566.0,0.000946]
[1718866196555,1.90212115,65567.0,65566.0,0.000946]
[1718866196762,1.59709015,65567.0,65566.0,0.000946]
[1718866196964,1.53860668,65567.0,65566.0,0.000946]
[1718866200917,1.47950668,65567.0,65566.0,0.000946]
[1718866201115,1.53860668,65567.0,65566.0,0.000946]
[1718866204142,1.54860668,65567.0,65566.0,0.000946]
[1718866204344,1.53860668,65567.0,65566.0,0.000946]
[1718866206887,1.53860668,65567.0,65566.0,0.265946]
[1718866208505,1.45650668,65567.0,65566.0,0.117546]
[1718866208688,1.44650668,65567.0,65566.0,0.265846]
[1718866208866,1.51560668,65567.0,65566.0,0.265846]
[1718866209081,1.65280207,65567.0,65566.0,0.265846]
[1718866210268,1.62932151,65567.0,65566.0,0.265846]
[1718866210455,1.65364516,65567.0,65566.0,0.265846]
[1718866210658,1.51644977,65567.0,65566.0,0.265846]
[1718866211315,1.05885765,65567.0,65566.0,0.265846]
[1718866211543,0.99975765,65567.0,65566.0,0.265846]
[1718866211742,1.05885765,65567.0,65566.0,0.265846]
[1718866211898,1.04885765,65567.0,65566.0,0.265846]
[1718866212503,0.98975765,65567.0,65566.0,0.265846]
[1718866212808,1.04885765,65567.0,65566.0,0.265846]
[1718866214630,0.98975765,65567.0,65566.0,0.265846]
[1718866214835,1.04885765,65567.0,65566.0,0.265846]
[1718866216495,0.73808965,65567.0,65566.0,0.265846]
[1718866217394,1.04312065,65567.0,65566.0,0.265846]
[1718866217591,1.06704619,65567.0,65566.0,0.265846]
[1718866217838,1.07704619,65567.0,65566.0,0.265846]
[1718866218043,1.06704619,65567.0,65566.0,0.265846]
[1718866218388,1.07704619,65567.0,65566.0,0.265846]
[1718866219042,1.07704619,65567.0,65566.0,0.000946]
[1718866219043,1.69665067,65567.0,65566.0,0.000946]
[1718866219193,1.97464606,65567.0,65566.0,0.000946]
[1718866219393,2.04443493,65567.0,65566.0,0.000946]
[1718866219640,1.90584807,65567.0,65566.0,0.000946]
[1718866220443,1.88584807,65567.0,65566.0,0.000946]
[1718866220845,1.90884807,65567.0,65566.0,0.000946]
[1718866221099,1.89784807,65567.0,65566.0,0.000946]
[1718866221571,1.90784807,65567.0,65566.0,0.000946]
[1718866221769,1.89584807,65567.0,65566.0,0.000946]
[1718866222579,1.75504807,65567.0,65566.0,0.000946]
[1718866222780,1.69642962,65567.0,65566.0,0.000946]
[1718866223564,1.70642962,65567.0,65566.0,0.000946]
[1718866223768,1.71642962,65567.0,65566.0,0.000946]
[1718866225140,2.04446062,65567.0,65566.0,0.000946]
[1718866225340,2.10307907,65567.0,65566.0,0.000946]
[1718866226158,1.77312544,65567.0,65566.0,0.000946]
[1718866226361,1.71450699,65567.0,65566.0,0.000946]
[1718866227319,2.00622199,65567.0,65566.0,0.000946]
[1718866227553,2.14110044,65567.0,65566.0,0.000946]
[1718866228309,2.24110044,65567.0,65566.0,0.000946]
[1718866231068,2.17436412,65567.0,65566.0,0.000946]
[1718866231268,2.23346412,65567.0,65566.0,0.000946]
[1718866232016,2.22346412,65567.0,65566.0,0.000946]
[1718866232170,2.09826412,65567.0,65566.0,0.000946]
[1718866232552,2.08871574,65567.0,65566.0,0.000946]
[1718866232969,2.0888183,65567.0,65566.0,0.000946]
[1718866233739,2.1028183,65567.0,65566.0,0.000946]
[1718866234345,2.0888183,65567.0,65566.0,0.000946]
[1718866234751,2.1028183,65567.0,65566.0,0.000946]
[1718866235129,1.452743,65562.0,65561.0,0.009471]
[1718866235335,0.477623,65556.0,65555.0,0.2517]
[1718866235505,1.4565179,65556.0,65555.0,0.2517]
[1718866235747,1.5565179,65556.0,65555.0,0.2517]
[1718866235874,1.62883546,65556.0,65555.0,0.2517]
[1718866236076,1.48175024,65556.0,65555.0,0.2517]
[1718866236867,1.55801024,65556.0,65555.0,0.2517]
[1718866238120,1.55801024,65556.0,65543.0,0.00948199]
[1718866238121,0.315102,65552.0,65551.0,0.1161]
[1718866238317,1.10439868,65552.0,65551.0,0.1161]
[1718866239350,1.71560168,65552.0,65551.0,0.1161]
[1718866239550,1.71460168,65552.0,65551.0,0.1161]
[1718866239955,1.71660168,65552.0,65551.0,0.1161]
[1718866240246,1.86915582,65552.0,65551.0,0.1161]
[1718866240421,1.92431807,65552.0,65551.0,0.1161]
[1718866240614,1.93431807,65552.0,65551.0,0.1161]
[1718866240819,1.86821807,65552.0,65551.0,0.1161]
[1718866241016,1.92731807,65552.0,65551.0,0.1161]
[1718866241218,1.077965,65545.0,65543.0,0.00948199]
[1718866241430,1.25704956,65545.0,65543.0,0.00948199]
[1718866241641,1.25704956,65545.0,65544.0,0.26188199]
[1718866241971,1.40961068,65545.0,65544.0,0.26188199]
[1718866242745,1.41061068,65545.0,65544.0,0.26188199]
[1718866242965,1.55656482,65545.0,65544.0,0.26188199]
[1718866243165,1.61172707,65545.0,65544.0,0.26188199]
[1718866243303,1.68798707,65545.0,65544.0,0.26188199]
[1718866243507,1.82718707,65545.0,65544.0,0.00948199]
[1718866243707,1.68798707,65545.0,65544.0,0.00948199]
[1718866244529,1.68698707,65545.0,65544.0,0.00948199]
[1718866244736,1.69198707,65545.0,65544.0,0.12718199]
[1718866244960,1.68898707,65545.0,65544.0,0.12718199]
[1718866245316,1.54303293,65545.0,65544.0,0.12718199]
[1718866245540,1.54703293,65545.0,65544.0,0.12718199]
[1718866245748,1.55403293,65545.0,65544.0,0.12718199]
[1718866246686,1.54803293,65545.0,65544.0,0.12718199]
[1718866246891,1.85316593,65545.0,65544.0,0.12718199]
[1718866247213,2.00572007,65545.0,65544.0,0.12718199]
[1718866247674,1.99872007,65545.0,65544.0,0.12718199]
[1718866247831,1.77706593,65545.0,65544.0,0.12718199]
[1718866248034,1.42477068,65545.0,65544.0,0.27378199]
[1718866248442,1.43477068,65545.0,65544.0,0.27378199]
[1718866248655,1.43377068,65545.0,65544.0,0.27378199]
[1718866248859,1.44277068,65545.0,65544.0,0.27378199]
[1718866249054,1.58595775,65545.0,65544.0,0.27378199]
[1718866249271,1.59495775,65545.0,65544.0,0.27378199]
[1718866249469,1.58595775,65545.0,65544.0,0.27378199]
[1718866249692,1.57695775,65545.0,65544.0,0.27378199]
[1718866249893,1.58395775,65545.0,65544.0,0.27378199]
[1718866250330,1.43377068,65545.0,65544.0,0.27378199]
[1718866251011,1.44177068,65545.0,65544.0,0.27378199]
[1718866251183,1.46167492,65545.0,65544.0,0.27378199]
[1718866251624,1.45367492,65545.0,65544.0,0.27378199]
[1718866251826,1.45467492,65545.0,65544.0,0.27378199]
[1718866252288,1.46167492,65545.0,65544.0,0.27378199]
[1718866253520,1.43682411,65545.0,65544.0,0.26378199]